[Event "Titled Tuesday Blitz February 15 Late 2022"]
[White "Nazaretyan, Tigran"]
[Black "Petrova, Irina"]
[WhiteFideId "24162345"]
[BlackFideId "14124122"]
[WhiteElo "2192"]
[BlackElo "1988"]
[Result "0-1"]
[Round "02"]
[TimeControl "180+1"]
[Date "2022.02.16"]
[WhiteClock "0:00:08"]
[BlackClock "0:00:21"]

1. d4 {[%clk 0:02:55]}  d5 {[%clk 0:02:59]} 2. c4 {[%clk 0:02:54]}  c6 {[%clk 0:02:59]} 3. Nf3 {[%clk 0:02:54]}  Nf6 {[%clk 0:02:59]} 4. Nc3 {[%clk 0:02:53]}  e6 {[%clk 0:03:00]} 5. e3 {[%clk 0:02:53]}  Nbd7 {[%clk 0:02:59]} 6. Qc2 {[%clk 0:02:53]}  Bd6 {[%clk 0:02:58]} 7. Be2 {[%clk 0:02:51]}  O-O {[%clk 0:02:56]} 8. O-O {[%clk 0:02:49]}  dxc4 {[%clk 0:02:52]} 9. a4 {[%clk 0:02:49]}  e5 {[%clk 0:02:49]} 10. Bxc4 {[%clk 0:02:47]}  exd4 {[%clk 0:02:46]} 11. exd4 {[%clk 0:02:47]}  Nb6 {[%clk 0:02:46]} 12. Bb3 {[%clk 0:02:45]}  Nfd5 {[%clk 0:02:39]} 13. a5 {[%clk 0:02:36]}  Nb4 {[%clk 0:02:36]} 14. Qb1 {[%clk 0:02:19]}  N6d5 {[%clk 0:02:36]} 15. Ng5 {[%clk 0:02:18]}  g6 {[%clk 0:02:31]} 16. Nge4 {[%clk 0:02:14]}  Bc7 {[%clk 0:02:25]} 17. Bg5 {[%clk 0:02:12]}  f6 {[%clk 0:02:17]} 18. Bh6 {[%clk 0:02:02]}  Rf7 {[%clk 0:02:18]} 19. Ra4 {[%clk 0:01:45]}  Bxa5 {[%clk 0:02:03]} 20. Nxd5 {[%clk 0:01:38]}  Nxd5 {[%clk 0:02:02]} 21. Nc3 {[%clk 0:01:35]}  Bc7 {[%clk 0:01:55]} 22. Re1 {[%clk 0:01:29]}  Bf5 {[%clk 0:01:46]} 23. Qa2 {[%clk 0:01:28]}  Qd6 {[%clk 0:01:38]} 24. g3 {[%clk 0:01:25]}  Rd7 {[%clk 0:01:27]} 25. Bf4 {[%clk 0:01:03]}  Qf8 {[%clk 0:01:12]} 26. Bxc7 {[%clk 0:01:01]}  Rxc7 {[%clk 0:01:13]} 27. Bxd5+ {[%clk 0:01:01]}  cxd5 {[%clk 0:01:11]} 28. Nxd5 {[%clk 0:01:01]}  Rf7 {[%clk 0:01:12]} 29. Ne7+ {[%clk 0:00:55]}  Kg7 {[%clk 0:01:05]} 30. Nxf5+ {[%clk 0:00:55]}  gxf5 {[%clk 0:01:06]} 31. Ra5 {[%clk 0:00:53]}  Re8 {[%clk 0:01:02]} 32. Rf1 {[%clk 0:00:42]}  Qd6 {[%clk 0:00:56]} 33. Rxf5 {[%clk 0:00:37]}  Qxd4 {[%clk 0:00:54]} 34. Rd5 {[%clk 0:00:37]}  Qe4 {[%clk 0:00:45]} 35. Rh5 {[%clk 0:00:32]}  Rfe7 {[%clk 0:00:42]} 36. Rh4 {[%clk 0:00:31]}  Qf3 {[%clk 0:00:41]} 37. Qxa7 {[%clk 0:00:29]}  Re1 {[%clk 0:00:33]} 38. Rg4+ {[%clk 0:00:06]}  Qxg4 {[%clk 0:00:32]} 39. Qxb7+ {[%clk 0:00:07]}  R1e7 {[%clk 0:00:31]} 40. Qb5 {[%clk 0:00:06]}  Qf3 {[%clk 0:00:30]} 41. Qb4 {[%clk 0:00:06]}  Re2 {[%clk 0:00:26]} 42. b3 {[%clk 0:00:05]}  R8e7 {[%clk 0:00:26]} 43. Qc4 {[%clk 0:00:03]}  Qe4 {[%clk 0:00:26]} 44. Qc5 {[%clk 0:00:03]}  Re1 {[%clk 0:00:25]} 45. Qb5 {[%clk 0:00:03]}  Rxf1+ {[%clk 0:00:25]} 46. Qxf1 {[%clk 0:00:03]}  Qe1 {[%clk 0:00:25]} 47. b4 {[%clk 0:00:04]}  Qxf1+ {[%clk 0:00:24]} 48. Kxf1 {[%clk 0:00:05]}  Rb7 {[%clk 0:00:24]} 49. h4 {[%clk 0:00:05]}  Rxb4 {[%clk 0:00:24]} 50. Kg2 {[%clk 0:00:06]}  h5 {[%clk 0:00:23]} 51. Kf3 {[%clk 0:00:07]}  Kg6 {[%clk 0:00:22]} 52. Kg2 {[%clk 0:00:08]}  Kf5 {[%clk 0:00:22]} 53. Kf3 {[%clk 0:00:08]}  Rb3+ {[%clk 0:00:22]} 54. Kg2 {[%clk 0:00:07]}  Kg4 {[%clk 0:00:22]} 55. Kh2 {[%clk 0:00:08]}  Kf3 {[%clk 0:00:22]} 56. g4 {[%clk 0:00:07]}  hxg4 {[%clk 0:00:21]} 57. h5 {[%clk 0:00:08]}  Kxf2 {[%clk 0:00:21]} 58. h6 {[%clk 0:00:08]}  Rh3# {[%clk 0:00:21]} 0-1


[Site "https://www.chess.com"]

[Event "Titled Tuesday Blitz February 15 Late 2022"]
[White "Nepomniachtchi, Ian"]
[Black "Djordjevic, Vuk"]
[WhiteFideId "4168119"]
[BlackFideId "902098"]
[WhiteElo "2740"]
[BlackElo "2463"]
[Result "1-0"]
[Round "02"]
[TimeControl "180+1"]
[Date "2022.02.15"]
[WhiteClock "0:01:05"]
[BlackClock "0:00:01"]

1. e4 {[%clk 0:02:23]}  e6 {[%clk 0:02:58]} 2. d4 {[%clk 0:02:21]}  d5 {[%clk 0:02:58]} 3. Nd2 {[%clk 0:02:22]}  Be7 {[%clk 0:02:58]} 4. Ngf3 {[%clk 0:02:22]}  Nf6 {[%clk 0:02:58]} 5. e5 {[%clk 0:02:22]}  Nfd7 {[%clk 0:02:58]} 6. Bd3 {[%clk 0:02:23]}  c5 {[%clk 0:02:59]} 7. c3 {[%clk 0:02:24]}  b6 {[%clk 0:02:58]} 8. Qe2 {[%clk 0:02:23]}  a5 {[%clk 0:02:58]} 9. Nf1 {[%clk 0:02:22]}  Ba6 {[%clk 0:02:58]} 10. Bxa6 {[%clk 0:02:22]}  Nxa6 {[%clk 0:02:54]} 11. Ng3 {[%clk 0:02:23]}  a4 {[%clk 0:02:42]} 12. a3 {[%clk 0:02:22]}  Qb8 {[%clk 0:02:38]} 13. Nh5 {[%clk 0:02:21]}  g6 {[%clk 0:02:34]} 14. Nf4 {[%clk 0:02:21]}  b5 {[%clk 0:02:32]} 15. h4 {[%clk 0:02:21]}  h5 {[%clk 0:02:31]} 16. Ng5 {[%clk 0:02:19]}  b4 {[%clk 0:02:24]} 17. axb4 {[%clk 0:02:17]}  cxb4 {[%clk 0:02:23]} 18. Rxa4 {[%clk 0:02:09]}  Nc7 {[%clk 0:02:22]} 19. Rxa8 {[%clk 0:02:07]}  Qxa8 {[%clk 0:02:23]} 20. O-O {[%clk 0:02:05]}  Nb6 {[%clk 0:02:13]} 21. Qd3 {[%clk 0:02:02]}  Qa6 {[%clk 0:01:58]} 22. Qg3 {[%clk 0:02:02]}  Rg8 {[%clk 0:01:37]} 23. Nh7 {[%clk 0:02:00]}  Rh8 {[%clk 0:01:25]} 24. Nxg6 {[%clk 0:01:49]}  Rg8 {[%clk 0:01:09]} 25. Nf6+ {[%clk 0:01:42]}  Bxf6 {[%clk 0:01:07]} 26. exf6 {[%clk 0:01:43]}  Nba8 {[%clk 0:00:55]} 27. Qf3 {[%clk 0:01:35]}  Rxg6 {[%clk 0:00:54]} 28. Qxh5 {[%clk 0:01:36]}  Qd3 {[%clk 0:00:31]} 29. Bg5 {[%clk 0:01:29]}  bxc3 {[%clk 0:00:24]} 30. bxc3 {[%clk 0:01:29]}  Rg8 {[%clk 0:00:24]} 31. Ra1 {[%clk 0:01:16]}  Qg6 {[%clk 0:00:17]} 32. Qd1 {[%clk 0:01:07]}  Nb6 {[%clk 0:00:07]} 33. Qb3 {[%clk 0:01:05]}  Nc4 {[%clk 0:00:03]} 34. Ra7 {[%clk 0:01:05]}  Kd7 {[%clk 0:00:02]} 35. Qb5+ {[%clk 0:01:04]}  Kd6 {[%clk 0:00:01]} 36. Qc5+ {[%clk 0:01:04]}  Kd7 {[%clk 0:00:01]} 37. Qxc7+ {[%clk 0:01:05]}  Ke8 {[%clk 0:00:01]} 38. Qe7# {[%clk 0:01:05]} 1-0


[Site "https://www.chess.com"]

[Event "Titled Tuesday Blitz February 15 Late 2022"]
[White "Okike, David"]
[Black "Kalashian, David"]
[WhiteFideId "8500134"]
[BlackFideId "13302418"]
[WhiteElo "2232"]
[BlackElo "2490"]
[Result "0-1"]
[Round "02"]
[TimeControl "180+1"]
[Date "2022.02.16"]
[WhiteClock "0:01:28"]
[BlackClock "0:00:12"]

1. e4 {[%clk 0:03:00]}  c6 {[%clk 0:02:54]} 2. d4 {[%clk 0:03:00]}  g6 {[%clk 0:02:55]} 3. c4 {[%clk 0:02:59]}  Bg7 {[%clk 0:02:50]} 4. Nc3 {[%clk 0:02:58]}  d6 {[%clk 0:02:45]} 5. Be2 {[%clk 0:02:57]}  Qb6 {[%clk 0:02:42]} 6. Nf3 {[%clk 0:02:48]}  Bg4 {[%clk 0:02:38]} 7. d5 {[%clk 0:02:47]}  Bxc3+ {[%clk 0:02:22]} 8. bxc3 {[%clk 0:02:46]}  Nf6 {[%clk 0:02:23]} 9. Qc2 {[%clk 0:02:44]}  Nbd7 {[%clk 0:02:18]} 10. Nd4 {[%clk 0:02:43]}  Bxe2 {[%clk 0:02:11]} 11. Qxe2 {[%clk 0:02:43]}  Rc8 {[%clk 0:02:06]} 12. Bd2 {[%clk 0:02:39]}  Qa6 {[%clk 0:01:49]} 13. dxc6 {[%clk 0:02:34]}  bxc6 {[%clk 0:01:46]} 14. f4 {[%clk 0:02:23]}  e5 {[%clk 0:01:20]} 15. Nf3 {[%clk 0:02:18]}  O-O {[%clk 0:01:12]} 16. fxe5 {[%clk 0:02:17]}  Nxe5 {[%clk 0:01:09]} 17. Nxe5 {[%clk 0:02:16]}  dxe5 {[%clk 0:01:10]} 18. O-O {[%clk 0:02:16]}  c5 {[%clk 0:00:57]} 19. Bg5 {[%clk 0:02:12]}  Nh5 {[%clk 0:00:54]} 20. g4 {[%clk 0:02:09]}  Nf4 {[%clk 0:00:53]} 21. Bxf4 {[%clk 0:02:09]}  exf4 {[%clk 0:00:54]} 22. Rxf4 {[%clk 0:02:09]}  Qe6 {[%clk 0:00:54]} 23. Raf1 {[%clk 0:02:05]}  Rb8 {[%clk 0:00:51]} 24. e5 {[%clk 0:02:00]}  Rbe8 {[%clk 0:00:40]} 25. Re1 {[%clk 0:01:56]}  f6 {[%clk 0:00:35]} 26. Re4 {[%clk 0:01:55]}  f5 {[%clk 0:00:31]} 27. gxf5 {[%clk 0:01:45]}  Rxf5 {[%clk 0:00:30]} 28. Re3 {[%clk 0:01:43]}  Rg5+ {[%clk 0:00:28]} 29. Kh1 {[%clk 0:01:42]}  Rf8 {[%clk 0:00:27]} 30. Rg3 {[%clk 0:01:40]}  Rxg3 {[%clk 0:00:13]} 31. hxg3 {[%clk 0:01:39]}  Qh3+ {[%clk 0:00:14]} 32. Qh2 {[%clk 0:01:39]}  Rf1+ {[%clk 0:00:14]} 33. Rxf1 {[%clk 0:01:39]}  Qxf1+ {[%clk 0:00:15]} 34. Qg1 {[%clk 0:01:39]}  Qh3+ {[%clk 0:00:15]} 35. Qh2 {[%clk 0:01:39]}  Qf1+ {[%clk 0:00:16]} 36. Qg1 {[%clk 0:01:39]}  Qxc4 {[%clk 0:00:16]} 37. Qe3 {[%clk 0:01:39]}  Kf7 {[%clk 0:00:08]} 38. a4 {[%clk 0:01:33]}  Ke6 {[%clk 0:00:07]} 39. Kg2 {[%clk 0:01:28]}  Qd5+ {[%clk 0:00:07]} 40. Kh2 {[%clk 0:01:28]}  Qxe5 {[%clk 0:00:08]} 41. Qd2 {[%clk 0:01:27]}  Qh5+ {[%clk 0:00:08]} 42. Kg2 {[%clk 0:01:26]}  Qd5+ {[%clk 0:00:08]} 43. Qxd5+ {[%clk 0:01:26]}  Kxd5 {[%clk 0:00:08]} 44. Kf3 {[%clk 0:01:27]}  Kc4 {[%clk 0:00:09]} 45. Kf4 {[%clk 0:01:26]}  Kxc3 {[%clk 0:00:09]} 46. Kg5 {[%clk 0:01:27]}  Kb4 {[%clk 0:00:10]} 47. Kh6 {[%clk 0:01:27]}  c4 {[%clk 0:00:11]} 48. Kxh7 {[%clk 0:01:28]}  c3 {[%clk 0:00:11]} 49. Kxg6 {[%clk 0:01:28]}  c2 {[%clk 0:00:12]} 50. g4 {[%clk 0:01:29]}  c1=Q {[%clk 0:00:12]} 51. g5 {[%clk 0:01:30]}  Kxa4 {[%clk 0:00:11]} 52. Kh7 {[%clk 0:01:29]}  Qxg5 {[%clk 0:00:11]} 53. Kh8 {[%clk 0:01:28]}  Kb5 {[%clk 0:00:12]} 0-1


[Site "https://www.chess.com"]

[Event "Titled Tuesday Blitz February 15 Late 2022"]
[White "Papayan, Oleg"]
[Black "Novikova, Galina"]
[WhiteFideId "4193911"]
[BlackFideId "4157095"]
[WhiteElo "2038"]
[BlackElo "1863"]
[Result "1/2-1/2"]
[Round "02"]
[TimeControl "180+1"]
[Date "2022.02.16"]
[WhiteClock "0:00:06"]
[BlackClock "0:00:30"]

1. e4 {[%clk 0:02:55]}  e6 {[%clk 0:02:59]} 2. d4 {[%clk 0:02:54]}  d5 {[%clk 0:03:00]} 3. Nc3 {[%clk 0:02:54]}  Bb4 {[%clk 0:02:59]} 4. Ne2 {[%clk 0:02:54]}  Nc6 {[%clk 0:02:58]} 5. a3 {[%clk 0:02:49]}  Ba5 {[%clk 0:02:58]} 6. b4 {[%clk 0:02:47]}  Bb6 {[%clk 0:02:58]} 7. Bb2 {[%clk 0:02:47]}  Nf6 {[%clk 0:02:57]} 8. e5 {[%clk 0:02:36]}  Nd7 {[%clk 0:02:55]} 9. Na4 {[%clk 0:02:25]}  O-O {[%clk 0:02:54]} 10. Ng3 {[%clk 0:02:17]}  f6 {[%clk 0:02:53]} 11. exf6 {[%clk 0:02:08]}  Qxf6 {[%clk 0:02:54]} 12. Qd2 {[%clk 0:01:59]}  e5 {[%clk 0:02:38]} 13. Nxb6 {[%clk 0:01:57]}  axb6 {[%clk 0:02:36]} 14. dxe5 {[%clk 0:01:57]}  Ndxe5 {[%clk 0:02:34]} 15. O-O-O {[%clk 0:01:34]}  Qf7 {[%clk 0:02:20]} 16. b5 {[%clk 0:01:27]}  Ng4 {[%clk 0:02:08]} 17. f3 {[%clk 0:01:20]}  Nf6 {[%clk 0:01:57]} 18. bxc6 {[%clk 0:01:19]}  bxc6 {[%clk 0:01:58]} 19. Bd3 {[%clk 0:01:09]}  c5 {[%clk 0:01:58]} 20. Bf5 {[%clk 0:01:09]}  Bxf5 {[%clk 0:01:51]} 21. Nxf5 {[%clk 0:01:10]}  d4 {[%clk 0:01:51]} 22. Qd3 {[%clk 0:00:54]}  Kh8 {[%clk 0:01:48]} 23. g4 {[%clk 0:00:51]}  b5 {[%clk 0:01:43]} 24. h4 {[%clk 0:00:35]}  Rfd8 {[%clk 0:01:37]} 25. g5 {[%clk 0:00:26]}  Nd5 {[%clk 0:01:32]} 26. h5 {[%clk 0:00:16]}  Rf8 {[%clk 0:01:23]} 27. Nh4 {[%clk 0:00:12]}  Nf4 {[%clk 0:01:21]} 28. Ng6+ {[%clk 0:00:12]}  Kg8 {[%clk 0:01:17]} 29. Nxf4 {[%clk 0:00:12]}  Qxf4+ {[%clk 0:01:18]} 30. Kb1 {[%clk 0:00:12]}  b4 {[%clk 0:01:09]} 31. axb4 {[%clk 0:00:10]}  Rfb8 {[%clk 0:01:10]} 32. Qe4 {[%clk 0:00:08]}  Qf7 {[%clk 0:01:06]} 33. g6 {[%clk 0:00:07]}  Qa2+ {[%clk 0:01:04]} 34. Kc1 {[%clk 0:00:08]}  Qc4 {[%clk 0:00:57]} 35. Rde1 {[%clk 0:00:07]}  Qb5 {[%clk 0:00:41]} 36. gxh7+ {[%clk 0:00:06]}  Kh8 {[%clk 0:00:41]} 37. h6 {[%clk 0:00:07]}  Qd7 {[%clk 0:00:41]} 38. hxg7+ {[%clk 0:00:08]}  Qxg7 {[%clk 0:00:42]} 39. Qe5 {[%clk 0:00:05]}  Rxb4 {[%clk 0:00:40]} 40. Qxg7+ {[%clk 0:00:04]}  Kxg7 {[%clk 0:00:41]} 41. Re7+ {[%clk 0:00:04]}  Kh8 {[%clk 0:00:42]} 42. Rxc7 {[%clk 0:00:05]}  Rab8 {[%clk 0:00:42]} 43. Kd2 {[%clk 0:00:01]}  Rxb2 {[%clk 0:00:42]} 44. Rxc5 {[%clk 0:00:02]}  R2b7 {[%clk 0:00:41]} 45. Rc4 {[%clk 0:00:03]}  Rf8 {[%clk 0:00:41]} 46. Rxd4 {[%clk 0:00:03]}  Rbf7 {[%clk 0:00:38]} 47. f4 {[%clk 0:00:03]}  Rc8 {[%clk 0:00:34]} 48. c4 {[%clk 0:00:03]}  Rfc7 {[%clk 0:00:35]} 49. Kd3 {[%clk 0:00:03]}  Re8 {[%clk 0:00:35]} 50. Rh5 {[%clk 0:00:03]}  Rce7 {[%clk 0:00:35]} 51. c5 {[%clk 0:00:03]}  Re3+ {[%clk 0:00:35]} 52. Kc4 {[%clk 0:00:04]}  Re1 {[%clk 0:00:36]} 53. c6 {[%clk 0:00:03]}  Rc8 {[%clk 0:00:37]} 54. Rc5 {[%clk 0:00:02]}  Rc1+ {[%clk 0:00:36]} 55. Kd5 {[%clk 0:00:01]}  Rd8+ {[%clk 0:00:36]} 56. Ke6 {[%clk 0:00:01]}  Re1+ {[%clk 0:00:33]} 57. Kf7 {[%clk 0:00:02]}  Rxd4 {[%clk 0:00:32]} 58. c7 {[%clk 0:00:02]}  Rxf4+ {[%clk 0:00:32]} 59. Kg6 {[%clk 0:00:02]}  Rg1+ {[%clk 0:00:31]} 60. Kh5 {[%clk 0:00:03]}  Rf8 {[%clk 0:00:30]} 61. c8=Q {[%clk 0:00:04]}  Rxc8 {[%clk 0:00:31]} 62. Rxc8+ {[%clk 0:00:05]}  Kxh7 {[%clk 0:00:32]} 63. Rc7+ {[%clk 0:00:06]}  Rg7 {[%clk 0:00:30]} 64. Rxg7+ {[%clk 0:00:06]}  Kxg7 {[%clk 0:00:30]} 1/2-1/2


[Site "https://www.chess.com"]

[Event "Titled Tuesday Blitz February 15 Late 2022"]
[White "Petersson, Kjell"]
[Black "Krzywda, Andrzej"]
[WhiteFideId "1705148"]
[BlackFideId "1114565"]
[WhiteElo "2009"]
[BlackElo "2098"]
[Result "0-1"]
[Round "02"]
[TimeControl "180+1"]
[Date "2022.02.16"]
[WhiteClock "0:00:01"]
[BlackClock "0:00:42"]

1. d4 {[%clk 0:03:00]}  Nf6 {[%clk 0:02:59]} 2. Bf4 {[%clk 0:03:01]}  d5 {[%clk 0:02:59]} 3. e3 {[%clk 0:03:01]}  e6 {[%clk 0:03:00]} 4. Nf3 {[%clk 0:02:59]}  Bd6 {[%clk 0:03:00]} 5. Bg3 {[%clk 0:02:59]}  c5 {[%clk 0:03:01]} 6. c3 {[%clk 0:02:59]}  Qc7 {[%clk 0:03:01]} 7. Ne5 {[%clk 0:02:52]}  Nbd7 {[%clk 0:03:00]} 8. f4 {[%clk 0:02:49]}  Ne4 {[%clk 0:03:00]} 9. Bh4 {[%clk 0:02:44]}  cxd4 {[%clk 0:02:54]} 10. exd4 {[%clk 0:02:44]}  O-O {[%clk 0:02:54]} 11. Bd3 {[%clk 0:02:40]}  f5 {[%clk 0:02:54]} 12. O-O {[%clk 0:02:31]}  Nxe5 {[%clk 0:02:50]} 13. fxe5 {[%clk 0:02:24]}  Be7 {[%clk 0:02:50]} 14. Bxe7 {[%clk 0:02:08]}  Qxe7 {[%clk 0:02:51]} 15. Bxe4 {[%clk 0:02:09]}  dxe4 {[%clk 0:02:50]} 16. Nd2 {[%clk 0:02:02]}  b6 {[%clk 0:02:49]} 17. Nc4 {[%clk 0:02:01]}  Ba6 {[%clk 0:02:49]} 18. Qb3 {[%clk 0:01:58]}  Qc7 {[%clk 0:02:29]} 19. Nd6 {[%clk 0:01:45]}  Bxf1 {[%clk 0:02:28]} 20. Rxf1 {[%clk 0:01:46]}  Qd7 {[%clk 0:02:23]} 21. Nxf5 {[%clk 0:01:31]}  Kh8 {[%clk 0:02:23]} 22. Ng3 {[%clk 0:01:27]}  e3 {[%clk 0:02:18]} 23. Qc2 {[%clk 0:01:14]}  Qb5 {[%clk 0:02:16]} 24. Re1 {[%clk 0:01:04]}  Rac8 {[%clk 0:02:00]} 25. Rxe3 {[%clk 0:01:01]}  Qd5 {[%clk 0:02:01]} 26. Qb3 {[%clk 0:00:47]}  Rfd8 {[%clk 0:01:55]} 27. Qxd5 {[%clk 0:00:45]}  Rxd5 {[%clk 0:01:55]} 28. Ne4 {[%clk 0:00:44]}  b5 {[%clk 0:01:55]} 29. Nd6 {[%clk 0:00:44]}  Rb8 {[%clk 0:01:54]} 30. a3 {[%clk 0:00:42]}  Kg8 {[%clk 0:01:53]} 31. Rf3 {[%clk 0:00:41]}  a5 {[%clk 0:01:53]} 32. Kf2 {[%clk 0:00:35]}  b4 {[%clk 0:01:52]} 33. axb4 {[%clk 0:00:35]}  axb4 {[%clk 0:01:52]} 34. Kg3 {[%clk 0:00:32]}  bxc3 {[%clk 0:01:40]} 35. bxc3 {[%clk 0:00:33]}  Rb3 {[%clk 0:01:40]} 36. Kf4 {[%clk 0:00:31]}  Rb2 {[%clk 0:01:33]} 37. Rg3 {[%clk 0:00:28]}  Rc2 {[%clk 0:01:30]} 38. Ke4 {[%clk 0:00:28]}  Re2+ {[%clk 0:01:21]} 39. Kd3 {[%clk 0:00:27]}  Rexe5 {[%clk 0:01:17]} 40. Ne8 {[%clk 0:00:15]}  Rg5 {[%clk 0:01:16]} 41. Rxg5 {[%clk 0:00:09]}  Rxg5 {[%clk 0:01:17]} 42. g3 {[%clk 0:00:09]}  Kf7 {[%clk 0:01:18]} 43. Nd6+ {[%clk 0:00:08]}  Ke7 {[%clk 0:01:18]} 44. Ne4 {[%clk 0:00:08]}  Rh5 {[%clk 0:01:18]} 45. h4 {[%clk 0:00:08]}  Ra5 {[%clk 0:01:16]} 46. Nc5 {[%clk 0:00:07]}  Ra2 {[%clk 0:01:14]} 47. Ke4 {[%clk 0:00:06]}  Rg2 {[%clk 0:01:13]} 48. Kf3 {[%clk 0:00:06]}  Rc2 {[%clk 0:01:14]} 49. Ne4 {[%clk 0:00:06]}  h6 {[%clk 0:01:12]} 50. g4 {[%clk 0:00:06]}  Rc1 {[%clk 0:01:11]} 51. g5 {[%clk 0:00:06]}  h5 {[%clk 0:01:11]} 52. Kf4 {[%clk 0:00:05]}  Rh1 {[%clk 0:01:09]} 53. Kg3 {[%clk 0:00:05]}  Re1 {[%clk 0:01:09]} 54. Kf4 {[%clk 0:00:04]}  Re2 {[%clk 0:01:07]} 55. Ke5 {[%clk 0:00:02]}  Rh2 {[%clk 0:01:04]} 56. Nc5 {[%clk 0:00:02]}  Rh1 {[%clk 0:01:00]} 57. c4 {[%clk 0:00:01]}  Re1+ {[%clk 0:01:00]} 58. Ne4 {[%clk 0:00:01]}  Rh1 {[%clk 0:00:56]} 59. d5 {[%clk 0:00:02]}  exd5 {[%clk 0:00:55]} 60. cxd5 {[%clk 0:00:03]}  Rxh4 {[%clk 0:00:54]} 61. d6+ {[%clk 0:00:03]}  Kd8 {[%clk 0:00:55]} 62. Nc5 {[%clk 0:00:04]}  Rg4 {[%clk 0:00:52]} 63. Ke6 {[%clk 0:00:04]}  Rb4 {[%clk 0:00:43]} 64. Na6 {[%clk 0:00:01]}  Rb6 {[%clk 0:00:42]} 0-1


[Site "https://www.chess.com"]

[Event "Titled Tuesday Blitz February 15 Late 2022"]
[White "Pichot, Alan"]
[Black "Jacobson, Aaron"]
[WhiteFideId "110973"]
[BlackFideId "2089912"]
[WhiteElo "2543"]
[BlackElo "2265"]
[Result "1-0"]
[Round "02"]
[TimeControl "180+1"]
[Date "2022.02.15"]
[WhiteClock "0:00:37"]
[BlackClock "0:00:04"]

1. e4 {[%clk 0:03:00]}  f5 {[%clk 0:02:55]} 2. exf5 {[%clk 0:02:58]}  Nf6 {[%clk 0:02:55]} 3. Nf3 {[%clk 0:02:52]}  d5 {[%clk 0:02:55]} 4. d4 {[%clk 0:02:44]}  Bxf5 {[%clk 0:02:55]} 5. Bd3 {[%clk 0:02:45]}  e6 {[%clk 0:02:56]} 6. O-O {[%clk 0:02:43]}  Bd6 {[%clk 0:02:56]} 7. c4 {[%clk 0:02:39]}  O-O {[%clk 0:02:42]} 8. c5 {[%clk 0:02:36]}  Be7 {[%clk 0:02:38]} 9. h3 {[%clk 0:02:34]}  b6 {[%clk 0:02:36]} 10. cxb6 {[%clk 0:02:31]}  axb6 {[%clk 0:02:36]} 11. Re1 {[%clk 0:02:30]}  c5 {[%clk 0:02:25]} 12. Nc3 {[%clk 0:02:18]}  Nc6 {[%clk 0:02:18]} 13. Bxf5 {[%clk 0:02:09]}  exf5 {[%clk 0:02:18]} 14. Bf4 {[%clk 0:02:03]}  Ne4 {[%clk 0:02:08]} 15. dxc5 {[%clk 0:01:35]}  Bxc5 {[%clk 0:01:51]} 16. Re2 {[%clk 0:01:16]}  d4 {[%clk 0:00:43]} 17. Nxe4 {[%clk 0:00:54]}  fxe4 {[%clk 0:00:28]} 18. Qb3+ {[%clk 0:00:54]}  Kh8 {[%clk 0:00:28]} 19. Rxe4 {[%clk 0:00:54]}  Na5 {[%clk 0:00:29]} 20. Qd3 {[%clk 0:00:51]}  Qd5 {[%clk 0:00:23]} 21. Be5 {[%clk 0:00:45]}  Nc6 {[%clk 0:00:22]} 22. Rh4 {[%clk 0:00:43]}  Qg8 {[%clk 0:00:14]} 23. Ng5 {[%clk 0:00:39]}  Rf6 {[%clk 0:00:04]} 24. Rxh7+ {[%clk 0:00:37]}  Qxh7 {[%clk 0:00:04]} 25. Qxh7# {[%clk 0:00:37]} 1-0


[Site "https://www.chess.com"]

[Event "Titled Tuesday Blitz February 15 Late 2022"]
[White "Piesik, Piotr"]
[Black "Saim, Mohamed Ilias"]
[WhiteFideId "1136194"]
[BlackFideId "7900465"]
[WhiteElo "2232"]
[BlackElo "2006"]
[Result "1-0"]
[Round "02"]
[TimeControl "180+1"]
[Date "2022.02.16"]
[WhiteClock "0:01:36"]
[BlackClock "0:00:01"]

1. Nf3 {[%clk 0:02:35]}  d5 {[%clk 0:02:56]} 2. g3 {[%clk 0:02:35]}  Nf6 {[%clk 0:02:36]} 3. Bg2 {[%clk 0:02:35]}  Nc6 {[%clk 0:02:36]} 4. O-O {[%clk 0:02:35]}  e5 {[%clk 0:02:36]} 5. d3 {[%clk 0:02:36]}  Be6 {[%clk 0:02:36]} 6. Nbd2 {[%clk 0:02:36]}  Qd7 {[%clk 0:02:36]} 7. e4 {[%clk 0:02:36]}  d4 {[%clk 0:02:34]} 8. Ng5 {[%clk 0:02:36]}  Bg4 {[%clk 0:02:25]} 9. f3 {[%clk 0:02:36]}  Bh5 {[%clk 0:02:16]} 10. a4 {[%clk 0:02:34]}  h6 {[%clk 0:02:11]} 11. Nh3 {[%clk 0:02:34]}  g5 {[%clk 0:01:50]} 12. Nf2 {[%clk 0:02:33]}  g4 {[%clk 0:01:42]} 13. fxg4 {[%clk 0:02:24]}  Nxg4 {[%clk 0:01:38]} 14. Bh3 {[%clk 0:02:21]}  Rg8 {[%clk 0:01:21]} 15. Nc4 {[%clk 0:02:17]}  Qe6 {[%clk 0:01:15]} 16. Nxg4 {[%clk 0:02:15]}  Bxg4 {[%clk 0:01:12]} 17. Bxg4 {[%clk 0:02:15]}  Qxg4 {[%clk 0:01:12]} 18. Qxg4 {[%clk 0:02:13]}  Rxg4 {[%clk 0:01:12]} 19. Rf5 {[%clk 0:02:09]}  Bd6 {[%clk 0:01:04]} 20. Bxh6 {[%clk 0:02:06]}  Nb4 {[%clk 0:00:52]} 21. Bd2 {[%clk 0:01:56]}  Nc6 {[%clk 0:00:34]} 22. Raf1 {[%clk 0:01:54]}  Rg7 {[%clk 0:00:31]} 23. Kg2 {[%clk 0:01:50]}  Ke7 {[%clk 0:00:28]} 24. Bg5+ {[%clk 0:01:48]}  Ke8 {[%clk 0:00:19]} 25. Bf6 {[%clk 0:01:46]}  Rg6 {[%clk 0:00:15]} 26. Bxe5 {[%clk 0:01:37]}  Bxe5 {[%clk 0:00:15]} 27. Nxe5 {[%clk 0:01:38]}  Nxe5 {[%clk 0:00:09]} 28. Rxe5+ {[%clk 0:01:39]}  Kf8 {[%clk 0:00:08]} 29. Rd5 {[%clk 0:01:38]}  Kg7 {[%clk 0:00:07]} 30. Rxd4 {[%clk 0:01:38]}  c5 {[%clk 0:00:06]} 31. Rd7 {[%clk 0:01:38]}  b6 {[%clk 0:00:01]} 32. Rfxf7+ {[%clk 0:01:37]}  Kh6 {[%clk 0:00:02]} 33. h4 {[%clk 0:01:36]}  Rag8 {[%clk 0:00:01]} 34. Rh7# {[%clk 0:01:36]} 1-0


[Site "https://www.chess.com"]